bitfinex/quotes_ETHUSD_20220227
["timestamp","ask_amount","ask_price","bid_price","bid_amount"]
[1645966810339,0.00635472,2834.5,2834.4,0.03900734]
[1645966810586,0.00635472,2834.5,2833.9,1.1705]
[1645966810793,0.00635472,2834.5,2834.0,7.2839]
[1645966811388,5.00443875,2834.9,2834.0,7.2839]
[1645966811588,1.01491715,2834.4,2834.0,7.2839]
[1645966811788,1.32127209,2834.4,2834.0,7.2839]
[1645966811989,3.5,2834.3,2834.0,7.2839]
[1645966812389,1.3,2834.3,2834.0,7.2839]
[1645966812591,0.3,2834.3,2834.0,7.2839]
[1645966812793,0.00635508,2834.3,2834.0,7.2839]
[1645966813095,0.88288,2834.2,2834.0,7.2839]
[1645966813293,0.88288,2834.2,2834.1,0.03900734]
[1645966813493,0.87818018,2834.2,2834.1,0.03900734]
[1645966814537,2.43938028,2834.2,2834.1,0.03900734]
[1645966820612,1.5612001,2834.2,2834.1,0.03900734]
[1645966823640,1.5612001,2834.2,2834.0,5.49072484]
[1645966823641,5.76613,2834.1,2834.0,5.49072484]
[1645966823837,6.76613,2834.1,2834.0,0.0873206]
[1645966824235,1.19165115,2833.6,2833.5,0.27210135]
[1645966824435,0.25,2833.9,2833.5,0.27210135]
[1645966824634,0.55,2833.9,2833.5,0.27210135]
[1645966825038,0.00599061,2833.7,2833.5,0.27210135]
[1645966825237,0.00599061,2833.7,2833.2,0.02742227]
[1645966825238,3.0,2833.6,2833.2,0.02742227]
[1645966825981,4.42600526,2833.6,2833.2,0.02742227]
[1645966826181,0.00599082,2833.5,2833.2,0.02742227]
[1645966826380,0.88318,2833.4,2833.2,0.02742227]
[1645966827385,0.88917095,2833.4,2833.2,0.02742227]
[1645966828188,0.88318,2833.4,2833.2,0.02742227]
[1645966828388,0.88917097,2833.4,2833.2,0.02742227]
[1645966829442,0.88318,2833.4,2833.2,0.02742227]
[1645966829641,1.5612001,2833.3,2833.2,0.02742227]
[1645966832852,1.5612001,2833.3,2832.9,0.0998412]
[1645966833090,0.25,2833.2,2832.9,0.0998412]
[1645966834492,0.25635923,2833.2,2832.9,0.0998412]
[1645966834991,2.4444701,2833.0,2832.9,0.0998412]
[1645966836192,7.5,2832.9,2832.6,0.39936481]
[1645966836394,3.5,2832.8,2832.6,0.39936481]
[1645966836599,11.0,2832.8,2832.3,0.08226678]
[1645966836833,11.0,2832.8,2832.3,0.15468572]
[1645966836834,0.25,2832.6,2832.3,0.15468572]
[1645966837036,8.05,2832.6,2831.8,0.02742227]
[1645966837236,9.05,2832.6,2831.8,0.02742227]
[1645966837435,1.76743,2832.4,2831.8,0.02742227]
[1645966837636,1.7673,2832.3,2831.8,0.02742227]
[1645966837836,2.65102,2832.3,2831.8,0.02742227]
[1645966838239,2.95102,2832.3,2831.8,0.02742227]
[1645966838446,2.65102,2832.3,2832.0,1.64168351]
[1645966838639,1.7673,2832.3,2832.0,1.64168351]
[1645966838843,0.25,2832.6,2832.0,1.64168351]
[1645966839040,0.25,2832.6,2832.1,0.02742227]
[1645966840044,0.25,2832.6,2832.5,1.03438378]
[1645966840241,1.8112001,2832.6,2832.5,1.03438378]
[1645966840491,1.8112001,2832.6,2832.5,0.98438378]
[1645966844932,1.8112001,2832.6,2832.0,0.5]
[1645966845336,0.25,2832.6,2832.0,0.5]
[1645966845536,1.5612001,2832.3,2832.0,0.5]
[1645966845840,1.5612001,2832.3,2832.0,1.62154024]
[1645966846242,1.5612001,2832.3,2832.0,0.45]
[1645966846440,1.5612001,2832.3,2831.9,0.1996824]
[1645966848499,5.3612001,2832.3,2831.9,0.1996824]
[1645966848699,1.5612001,2832.3,2831.9,0.1996824]
[1645966850500,0.78060005,2832.3,2831.9,0.1996824]
[1645966850702,3.65051,2832.4,2831.9,0.1996824]
[1645966850902,2.85459496,2832.1,2831.9,0.1496824]
[1645966851102,0.88362,2832.0,2831.9,0.1496824]
[1645966854649,0.88362,2832.0,2831.9,0.0996824]
[1645966855250,0.88362,2832.0,2831.9,0.02726346]
[1645966855488,1.09664665,2832.0,2831.9,0.02726346]
[1645966855685,6.3838333,2831.9,2831.7,0.07241894]
[1645966855889,6.3838333,2831.9,2831.5,0.0998412]
[1645966855890,1.26928576,2831.8,2831.5,0.0998412]
[1645966856087,1.5612001,2831.7,2831.5,0.0998412]
[1645966856289,1.18386,2831.6,2831.5,0.07241894]
[1645966856691,1.33530582,2831.6,2831.5,0.07241894]
[1645966857090,4.83530582,2831.6,2831.5,0.07241894]
[1645966857289,4.83530582,2831.6,2831.3,0.12806346]
[1645966857290,7.68294805,2831.5,2831.3,0.12806346]
[1645966857489,0.23038764,2831.4,2831.3,0.12806346]
[1645966857891,0.23038764,2831.4,2831.1,0.00599951]
[1645966857892,8.72655554,2831.4,2831.1,0.00599951]
[1645966858090,0.88409,2830.9,2830.1,0.00194907]
[1645966858390,0.88409,2830.9,2829.9,1.3151443]
[1645966858391,0.25,2830.8,2830.7,0.07241894]
[1645966862148,0.25,2830.8,2830.6,0.0057495]
[1645966862348,2.0181,2830.8,2830.6,0.0057495]
[1645966862550,2.3181,2830.8,2830.6,0.0057495]
[1645966862749,0.3,2830.7,2830.6,0.0057495]
[1645966862998,0.3,2830.7,2829.8,0.00194907]
[1645966863194,0.88408,2830.5,2829.8,0.07436801]
[1645966863395,1.76817,2830.5,2830.1,0.02308117]
[1645966864299,2.06817,2830.5,2829.8,0.07436801]
[1645966864505,0.25,2830.3,2829.8,0.07436801]
[1645966865299,0.8842,2830.1,2829.8,0.07436801]
[1645966865500,0.8842,2830.1,2829.8,0.07241894]
[1645966865501,0.88421,2830.0,2829.8,0.07241894]
[1645966865697,1.48421,2830.0,2829.8,0.07241894]
[1645966866496,1.5612001,2829.9,2829.8,0.07241894]
[1645966867043,1.5612001,2829.9,2829.8,0.0060601]
[1645966867842,1.5612001,2829.9,2829.2,0.00194907]
[1645966868046,1.5612001,2829.9,2829.1,2.99331894]
[1645966868244,2.76232301,2829.9,2829.1,2.99526801]
[1645966868447,0.25,2829.7,2829.1,0.07436801]
[1645966868646,0.88434,2829.6,2829.1,0.07436801]
[1645966868845,0.3,2829.5,2829.1,0.07241894]
[1645966869749,0.88446,2829.4,2829.1,0.07241894]
[1645966871793,1.5612001,2829.2,2829.1,0.07847277]
[1645966871992,1.5612001,2829.2,2829.1,0.00605383]
[1645966872193,1.8612001,2829.2,2829.1,0.00605383]
[1645966872592,2.04514322,2829.2,2828.7,0.02421897]
[1645966872795,0.25,2828.9,2828.3,0.00194907]
[1645966872994,0.17758106,2828.9,2828.6,0.02478003]
[1645966873999,0.17758106,2828.9,2828.3,1.35135648]
[1645966874437,1.76932,2828.7,2828.6,0.00619467]
[1645966875042,1.76932,2828.7,2828.0,0.00194907]
[1645966875343,1.76932,2828.7,2828.1,0.01669442]
[1645966875344,0.2433556,2828.5,2828.1,0.01669442]
[1645966875540,0.88494,2828.4,2828.1,0.01669442]
[1645966875738,1.54754781,2828.4,2828.1,0.01669442]
[1645966875939,2.61081086,2828.4,2828.1,0.01669442]
[1645966876138,0.88495,2828.1,2827.2,0.00194907]
[1645966876341,2.01985,2827.9,2827.2,0.00194907]
[1645966876538,2.01985,2827.9,2827.7,0.0242358]
[1645966876745,2.31985,2827.9,2827.7,0.0242358]
[1645966877140,1.5612001,2827.8,2827.7,0.0242358]
[1645966877543,1.5612001,2827.8,2827.2,0.00194907]
[1645966877739,2.4461501,2827.8,2827.1,1.42963123]
[1645966877995,3.3311501,2827.8,2827.1,1.42963123]
[1645966878590,0.88492,2827.7,2827.1,1.42963123]
[1645966880197,0.88492,2827.7,2827.3,0.00635624]
[1645966880595,0.83492,2827.7,2827.3,0.00635624]
[1645966881196,0.83492,2827.7,2827.1,1.40214936]
[1645966881396,0.83492,2827.7,2827.4,0.00414288]
[1645966882233,0.83492,2827.7,2827.1,0.00099434]
[1645966882433,1.5612001,2827.4,2827.1,0.00099434]
[1645966882634,0.83492,2827.7,2827.4,0.03395257]
[1645966883440,3.8,2827.6,2827.4,0.03395257]
[1645966883638,0.3,2827.6,2827.4,0.03395257]
[1645966885045,0.3,2827.6,2827.4,0.04029551]
[1645966885901,0.3,2827.6,2827.4,0.03395257]
[1645966886305,0.3,2827.6,2827.4,0.04029551]
[1645966886709,0.83492,2827.7,2827.4,0.04029551]
[1645966886909,2.01985,2827.9,2827.4,0.39289551]
[1645966886910,0.25,2827.9,2827.4,0.39289551]
[1645966887108,0.25,2827.9,2827.4,0.38655257]
[1645966887510,0.25,2827.9,2827.4,0.39289544]
[1645966887711,0.25,2827.9,2827.5,1.15123969]
[1645966888511,0.25,2827.9,2827.6,0.00634265]
[1645966889538,0.25,2827.9,2827.5,1.15123969]
[1645966889737,0.25,2827.9,2827.6,0.00634258]
[1645966890340,0.8848,2828.0,2827.6,0.00634258]
[1645966890542,0.25,2828.6,2827.7,2.5]
[1645966890746,0.25,2828.6,2827.9,0.01257189]
[1645966890940,0.8845,2829.0,2827.9,0.01257189]
[1645966891142,0.8845,2829.0,2828.0,0.1414]
[1645966891342,0.8845,2829.0,2827.9,0.01452096]
[1645966891343,4.9961679,2828.7,2828.1,0.00194907]
[1645966891543,5.2696576,2828.6,2827.9,0.00194907]
[1645966891742,0.21488262,2828.5,2827.7,0.00829157]
[1645966891942,0.88482,2828.6,2827.7,0.00194907]
[1645966892146,1.18482,2828.6,2827.7,0.00194907]
[1645966892344,1.18482,2828.6,2828.0,0.00634218]
[1645966892345,0.88483,2828.5,2828.0,0.00634218]
[1645966892547,0.3,2828.4,2828.3,1.20825323]
[1645966892745,0.88483,2828.5,2828.3,1.20825323]
[1645966892997,0.6,2828.6,2828.3,1.20825323]
[1645966893193,0.3,2828.6,2827.8,0.1414]
[1645966893400,0.3,2828.8,2828.0,0.0063423]
[1645966893594,0.88459,2828.9,2828.0,0.0022203]
[1645966894095,0.88457,2828.8,2828.0,0.0022203]
[1645966894297,0.3,2828.7,2827.9,0.00194907]
[1645966894698,0.3,2828.7,2827.5,0.1414]
[1645966894895,0.3,2828.7,2827.6,0.00194907]
[1645966895095,0.3,2828.7,2827.7,0.1414]
[1645966895096,0.88467,2828.5,2827.7,0.1414]
[1645966895495,0.88467,2828.5,2828.0,1.13571975]
[1645966895693,0.88467,2828.5,2827.6,0.00194907]
[1645966895897,0.88467,2828.5,2827.7,0.1414]
[1645966896295,0.88467,2828.5,2827.5,0.1414]
[1645966896593,0.88467,2828.5,2827.6,0.00194907]
[1645966896838,1.12250327,2828.4,2827.7,0.1414]
[1645966897039,1.18467,2828.5,2827.9,0.00634221]
[1645966897239,0.88467,2828.5,2827.9,0.00634221]
[1645966898043,0.88467,2828.5,2827.6,0.00194907]
[1645966898243,0.88467,2828.5,2827.8,1.13683383]
[1645966898644,0.88467,2828.5,2827.4,0.06437784]
[1645966898844,0.88467,2828.5,2827.4,0.06242877]
[1645966899045,0.88478,2828.1,2827.4,0.06242877]
[1645966899245,0.25,2827.9,2827.4,0.06242877]
[1645966899643,0.25,2827.9,2827.6,1.22198899]
[1645966901787,0.25,2827.9,2827.6,1.22833403]
[1645966902688,0.25,2827.9,2827.6,1.22198899]
[1645966902988,0.25,2827.9,2827.6,1.22833403]
[1645966903990,0.25,2827.9,2827.6,1.22198899]
[1645966904247,0.25,2827.9,2827.6,1.22833403]
[1645966905244,0.25,2827.9,2827.6,1.22198899]
[1645966905447,0.25,2827.9,2827.6,1.22833403]
[1645966906449,0.25,2827.9,2827.6,1.22198899]
[1645966910200,0.25,2827.9,2827.6,1.2283366]
[1645966911307,0.25,2827.9,2827.6,0.00634761]
[1645966912373,0.25,2827.9,2827.5,0.00298302]
[1645966912575,0.25,2827.9,2827.7,1.27079807]
[1645966913981,0.25,2827.9,2827.7,1.27591773]
[1645966914784,0.25,2827.9,2827.7,1.26957019]
[1645966915185,0.25,2827.9,2827.7,1.22591773]
[1645966915989,0.25,2827.9,2827.7,1.21957019]
[1645966916191,0.25,2827.9,2827.7,1.22591773]
[1645966917190,0.25,2827.9,2827.7,1.21957019]
[1645966917391,0.25,2827.9,2827.7,1.22591773]
[1645966918294,0.25,2827.9,2827.7,1.21957019]
[1645966918695,0.25,2827.9,2827.7,1.22591773]
[1645966919538,0.25,2827.9,2827.7,1.21957019]
[1645966919939,0.25,2827.9,2827.7,1.22591773]
[1645966920745,0.25,2827.9,2827.7,1.21957019]
[1645966920945,0.25,2827.9,2827.7,1.22591773]
[1645966921546,0.25,2827.9,2827.7,0.00634754]
[1645966921746,1.43492,2827.9,2827.7,0.00634754]
[1645966921953,1.43492,2827.9,2827.6,0.2562858]
[1645966922147,3.5,2827.8,2827.6,0.25728014]
[1645966922447,4.5,2827.8,2827.6,0.25728014]
[1645966922747,5.89870924,2827.8,2827.6,0.25728014]
[1645966923000,1.0,2827.8,2827.6,0.25728014]
[1645966923193,6.27,2827.8,2827.6,0.25728014]
[1645966923393,3.5,2827.7,2827.6,0.25728014]
[1645966923593,3.8,2827.7,2827.6,0.25728014]
[1645966923792,4.8,2827.7,2827.6,0.25728014]
[1645966924194,6.03437107,2827.7,2827.6,0.2562858]
[1645966924397,0.05679893,2827.6,2827.5,0.00011728]
[1645966924598,3.55679893,2827.6,2827.5,0.00011728]
[1645966924795,4.73688001,2827.6,2827.5,0.00011728]
[1645966924997,4.73688001,2827.6,2827.0,0.05496372]
[1645966925198,8.52385397,2827.6,2827.5,0.02748186]
[1645966925393,8.78502712,2827.6,2827.5,8.186e-05]
[1645966925993,5.28502712,2827.6,2827.5,8.186e-05]
[1645966926192,5.28403278,2827.6,2827.5,8.186e-05]
[1645966926394,6.60838141,2827.6,2827.5,0.02756372]
[1645966926840,0.0275,2827.5,2826.4,0.00194907]
[1645966927040,0.0275,2827.5,2827.0,0.02538052]
[1645966927041,6.7665779,2827.2,2827.0,0.02538052]
[1645966927245,6.7665779,2827.2,2826.1,0.00194907]
[1645966927246,13.65636,2827.1,2826.1,0.00194907]
[1645966927438,1.77105,2826.9,2826.4,0.02748186]
[1645966927638,0.25,2826.8,2826.4,0.02748186]
[1645966928040,0.43008108,2826.8,2826.4,0.02748186]
[1645966928241,1.24850448,2826.5,2826.4,0.02748186]
[1645966928443,1.77094,2826.7,2826.4,0.02748186]
[1645966928642,1.0,2826.7,2825.9,0.00194907]
[1645966928840,1.0,2826.7,2825.0,3.3942]
[1645966928841,3.8526,2826.7,2825.1,1.49818289]
[1645966929048,3.8526,2826.7,2825.0,3.0416]
[1645966929049,0.18008108,2826.6,2825.2,0.00194907]
[1645966929342,0.88571,2825.9,2825.2,0.04344398]
[1645966929546,1.07735161,2825.8,2825.2,0.04344398]
[1645966929750,0.88571,2825.9,2825.2,0.04344398]
[1645966929751,1.18571,2825.9,2825.2,0.04344398]
[1645966929941,0.25,2825.6,2825.2,0.04344398]
[1645966930143,0.25,2825.6,2825.2,0.04149491]
[1645966930602,0.88568,2825.5,2825.2,0.04149491]
[1645966930794,0.88568,2825.5,2825.3,0.00632873]
[1645966930998,1.43563,2825.6,2825.3,0.00632873]
[1645966931193,0.25,2825.6,2825.4,0.04035806]
[1645966931694,0.22251814,2825.6,2825.4,0.04035806]
[1645966931892,0.22251814,2825.6,2825.4,0.04668665]
[1645966932894,0.22251814,2825.6,2825.4,0.04035806]
[1645966933097,0.22251814,2825.6,2825.4,0.04668665]
[1645966933697,1.10813814,2825.6,2825.4,0.04668665]
[1645966934095,1.10813814,2825.6,2825.4,0.04035806]
[1645966934347,1.10813814,2825.6,2825.4,0.04668665]
[1645966934548,2.45226016,2825.6,2825.4,0.04668665]
[1645966935051,4.22377016,2825.6,2825.4,0.04668665]
[1645966935249,0.88575,2825.5,2825.4,0.04035806]
[1645966935451,0.88575,2825.5,2825.4,0.04668665]
[1645966935655,4.38575,2825.5,2825.4,0.04668665]
[1645966935852,0.88575,2825.5,2825.4,0.04668665]
[1645966936051,1.88575,2825.5,2825.4,0.04668665]
[1645966936256,4.21308743,2825.4,2825.1,0.00194907]
[1645966936456,3.5,2825.3,2824.1,0.00194907]
[1645966936757,3.5,2825.3,2824.0,5.6018675]
[1645966936758,0.88583,2825.1,2824.0,5.6018675]
[1645966937258,1.20567493,2824.8,2824.0,5.6018675]
[1645966937457,0.51542096,2824.9,2823.9,2.8429]
[1645966937662,0.3,2824.9,2823.9,2.8429]
[1645966937858,4.38592,2825.1,2823.9,2.8429]
[1645966938323,0.88585,2824.9,2823.9,2.8429]
[1645966938617,4.38592,2825.1,2824.4,1.25878591]
[1645966938618,0.88582,2825.1,2824.4,1.25878591]
[1645966938820,3.80766557,2825.5,2824.5,3.8526]
[1645966938821,2.65777,2825.5,2824.5,3.8526]
[1645966939818,2.65777,2825.5,2824.3,0.00372195]
[1645966940020,2.65777,2825.5,2824.2,3.5]
[1645966940223,0.25,2825.1,2824.2,3.5]
[1645966940622,0.25,2825.1,2824.8,0.00372129]
[1645966941220,0.25,2825.1,2824.3,0.00194842]
[1645966941520,0.25596547,2825.1,2824.8,0.00596617]
[1645966942665,0.25605844,2825.1,2824.8,0.00605916]
[1645966943672,0.25605844,2825.1,2824.0,5.4942]
[1645966943673,1.27655558,2824.7,2824.0,5.4942]
[1645966943870,1.04403317,2824.9,2824.1,7.0813]
[1645966944072,1.34403317,2824.9,2824.8,0.00605916]
[1645966944472,1.18587,2824.9,2824.8,0.00605916]
[1645966944872,1.18587,2824.9,2824.3,1.28594072]
[1645966945070,1.18587,2824.9,2824.1,7.0813]
[1645966946309,1.18587,2824.9,2824.4,0.00592958]
[1645966946910,2.07182,2824.9,2824.4,0.00592958]
[1645966947107,2.22253842,2824.9,2824.4,0.00592958]
[1645966947307,2.22253842,2824.9,2824.1,7.0813]
[1645966947508,3.38077125,2824.9,2824.5,0.00592939]
[1645966947908,23.38077125,2824.9,2824.5,0.00592939]
[1645966948314,1.77202,2824.8,2824.5,0.00592939]
[1645966948513,1.77202,2824.8,2824.2,0.00194137]
[1645966948717,1.77202,2824.8,2824.1,7.0813]
[1645966949946,0.25,2824.4,2824.3,0.005983]
[1645966950949,0.25,2824.4,2824.1,7.0813]
[1645966951149,0.25,2824.4,2824.2,0.00598313]
[1645966951349,1.1242002,2824.3,2824.2,0.00598313]
[1645966951550,0.25,2824.4,2824.2,0.00598313]
[1645966952150,1.77232,2824.3,2824.1,7.0813]
[1645966952349,3.5,2824.2,2824.1,7.0813]
[1645966952550,4.0,2824.1,2823.7,0.02393638]
[1645966952852,2.18609,2824.2,2823.7,0.02393638]
[1645966953110,7.5,2823.9,2823.4,0.32788001]
[1645966953314,5.27288,2823.8,2823.4,8.001e-05]
[1645966953507,0.48928099,2823.7,2823.4,8.001e-05]
[1645966953705,3.71774584,2823.6,2823.4,8.001e-05]
[1645966954005,7.43445026,2823.6,2823.4,8.001e-05]
[1645966954204,11.66718881,2823.6,2823.4,8.001e-05]
[1645966954506,9.27308,2823.4,2822.4,5.7228607]
[1645966954705,0.25,2823.1,2822.4,5.5028607]
[1645966954905,0.25,2823.1,2822.4,5.49911727]
[1645966955306,0.25,2823.1,2822.6,1.38660112]
[1645966955508,0.88653,2822.9,2822.6,1.38660112]
[1645966955708,0.25,2823.1,2822.6,1.38660112]
[1645966955709,0.55,2823.1,2822.6,1.38660112]
[1645966956307,0.25,2823.1,2822.6,1.38660112]
[1645966956507,0.25,2823.1,2822.4,5.49911727]
[1645966956747,0.25,2823.1,2822.4,5.64071727]
[1645966957348,0.25,2823.1,2822.6,0.00628894]
[1645966957552,0.25,2823.1,2822.7,0.1416]
[1645966957752,0.00628619,2823.8,2823.6,1.41923853]
[1645966957951,0.25,2823.7,2823.6,1.41923853]
[1645966958561,0.25,2823.7,2823.6,0.00628759]
[1645966959355,0.25,2823.7,2823.2,0.00193615]
[1645966959556,0.25,2823.7,2823.6,1.2471174]
[1645966959958,0.25,2823.7,2823.5,0.00628766]
[1645966960629,0.25,2823.7,2823.5,5.3526]
[1645966960825,0.25,2823.7,2823.6,0.1416]
[1645966961233,0.25,2823.7,2823.6,7.2246]
[1645966961425,0.25,2823.7,2823.6,7.5772]
[1645966962027,0.25,2823.7,2823.6,7.2246]
[1645966962227,0.25,2823.7,2823.6,7.5772]
[1645966964452,0.25,2823.7,2823.6,7.2246]
[1645966964650,0.25,2823.7,2823.6,7.083]
[1645966968622,1.69177562,2823.7,2823.6,7.083]
[1645966969029,1.69177562,2823.7,2823.6,1.76434]
[1645966969426,1.69177562,2823.7,2823.5,0.00564635]
[1645966969427,2.07437,2823.6,2823.5,0.00564635]
[1645966969623,2.07437,2823.6,2823.1,0.5]
[1645966969824,0.8865082,2823.4,2823.1,0.5]
[1645966970025,2.07302,2823.3,2823.1,0.5]
[1645966970724,0.88649,2823.2,2823.1,0.5]
[1645966971324,2.47542755,2823.3,2823.1,0.5]
[1645966971533,1.3,2823.3,2823.1,0.5]
[1645966971747,1.1865,2823.4,2823.1,0.5]
[1645966972348,1.4865,2823.4,2823.1,0.5]
[1645966973054,1.4865,2823.4,2823.1,0.50628468]
[1645966973659,0.6,2823.4,2823.1,0.50628468]
[1645966973858,0.6,2823.4,2823.1,0.5]
[1645966974162,0.25,2823.7,2823.1,0.50628468]
[1645966974955,2.02252,2823.7,2823.1,0.50628468]
[1645966975159,2.02252,2823.7,2823.1,0.5]
[1645966975609,2.32252,2823.7,2823.1,0.5]
[1645966975809,2.02252,2823.7,2823.1,0.5]
[1645966976012,0.25,2823.7,2823.1,0.8526]
[1645966976211,0.25,2823.7,2823.1,0.5]
[1645966977913,0.25,2823.7,2823.3,0.00628065]
[1645966978418,0.88627,2823.6,2823.3,0.00628065]
[1645966978821,1.18627,2823.6,2823.1,1.69190091]
[1645966979016,1.18627,2823.6,2823.4,0.00628051]
[1645966979953,1.18627,2823.6,2823.1,0.5]
[1645966980553,1.18627,2823.6,2823.4,0.00628051]
[1645966980554,0.3,2823.6,2823.4,0.00628051]
[1645966980752,0.55,2823.7,2823.4,0.00628051]
[1645966982066,1.13613,2824.1,2823.4,0.00628051]
[1645966982067,0.41577384,2824.4,2823.5,5.5]
[1645966982260,0.25,2824.7,2824.1,0.01293093]
[1645966982459,0.18008108,2824.8,2824.1,0.01293093]
[1645966982656,19.0,2824.9,2823.8,0.3526]
[1645966982858,19.0,2824.9,2824.0,0.3526]
[1645966983114,19.0,2824.9,2823.9,7.4339]
[1645966983314,19.0,2824.9,2824.0,0.00193615]
[1645966984129,19.88593,2824.9,2824.0,0.00193615]
[1645966984617,0.48338098,2824.8,2824.0,0.00193615]
[1645966985015,1.27070612,2824.6,2823.9,8.34834164]
[1645966985216,0.3,2824.6,2823.9,8.34834164]
[1645966985418,0.30229308,2824.6,2824.0,3.5]
[1645966985614,0.30229308,2824.6,2823.9,8.34834164]
[1645966986215,1.45086217,2824.6,2823.9,7.071956]
[1645966986417,0.30229308,2824.6,2823.9,7.071956]
[1645966986617,0.00627775,2824.4,2823.9,7.071956]
[1645966987257,0.00318526,2824.4,2823.9,7.071956]
[1645966987454,0.00318526,2824.4,2824.0,1.04373754]
[1645966987856,0.00627789,2824.3,2823.9,7.071956]
[1645966988462,0.00627789,2824.3,2823.9,2.683252]
[1645966988666,0.20803704,2824.2,2823.9,1.91937251]
[1645966988860,0.20803704,2824.2,2823.5,0.00627961]
[1645966988861,7.70803704,2824.2,2823.5,0.00627961]
[1645966989064,1.48654806,2824.1,2823.5,0.00627961]
[1645966989264,1.78654806,2824.1,2823.5,0.00627961]
[1645966989463,1.95155632,2824.1,2823.5,0.00627961]
[1645966989867,1.95155632,2824.1,2823.2,0.0019276]
[1645966990066,2.83800632,2824.1,2823.2,0.0019276]
[1645966990268,4.13800632,2824.1,2823.2,0.0019276]
[1645966990506,5.91073632,2824.1,2823.2,0.0019276]
[1645966990805,0.8864782,2823.5,2823.2,0.0019276]
[1645966991003,0.8864782,2823.5,2823.1,0.5]
[1645966991203,1.11865944,2823.4,2823.1,0.5]
[1645966991805,1.11865944,2823.4,2823.1,0.52382719]
[1645966992204,2.00512944,2823.4,2823.1,0.52382719]
[1645966992410,2.89160944,2823.4,2823.1,0.52382719]
[1645966992806,3.89160944,2823.4,2823.1,0.52978366]
[1645966993006,2.89160944,2823.4,2823.1,0.50595647]
[1645966993210,3.89160944,2823.4,2823.1,0.00595647]
[1645966993408,2.89160944,2823.4,2823.1,0.00595647]
[1645966993611,3.89160944,2823.4,2823.1,0.00595647]
[1645966994013,1.77295,2823.4,2823.1,0.00595647]
[1645966994660,1.77295,2823.4,2822.7,0.0019276]
[1645966994861,3.16698524,2823.4,2822.7,0.0019276]
[1645966995065,3.16698524,2823.4,2823.1,0.00598615]
[1645966995664,6.66698524,2823.4,2823.1,0.00598615]
[1645966995863,6.66698524,2823.4,2822.7,0.0019276]
[1645966995864,7.66698524,2823.4,2822.7,0.0019276]
[1645966996063,1.77312,2823.2,2822.5,1.1749276]
[1645966996266,0.3,2822.9,2822.7,0.02393346]
[1645966997069,0.3,2822.9,2822.4,5.49911727]
[1645966997265,1.18651,2822.9,2822.4,5.49911727]
[1645966997467,0.8866415,2822.8,2822.7,0.0059831]
[1645966997673,2.19535079,2822.8,2822.7,0.0059831]
[1645966998012,2.49535079,2822.8,2822.7,0.0059831]
[1645966998216,2.49535079,2822.8,2822.4,5.49911727]
[1645966998417,0.88656,2822.7,2822.4,5.49911727]
[1645966998616,0.88656,2822.7,2822.6,0.00627682]
[1645966998817,1.18656,2822.7,2822.6,0.00627682]
[1645966999717,1.18656,2822.7,2822.5,0.00628064]
[1645967000525,3.5,2822.6,2822.5,0.00628064]
[1645967000723,5.38675,2822.6,2822.4,5.49911727]
[1645967000922,0.19890039,2822.5,2822.4,5.49911727]
[1645967001122,3.5,2822.5,2822.4,5.49911727]
[1645967001318,4.5,2822.5,2822.4,5.49911727]
[1645967001754,4.95061809,2822.5,2822.4,5.49911727]
[1645967001948,1.45061809,2822.5,2822.4,5.49911727]
[1645967002349,0.45061809,2822.5,2822.4,5.49911727]
[1645967002548,0.45061809,2822.5,2822.4,0.17812727]
[1645967002749,0.45061809,2822.5,2821.8,0.0019276]
[1645967002750,3.95061809,2822.5,2821.8,0.0019276]
[1645967002959,2.6609262,2822.3,2821.8,0.0019276]
[1645967003152,2.6609262,2822.3,2821.7,0.1416]
[1645967003153,3.5,2822.2,2821.7,0.1416]
[1645967003354,5.00691463,2822.2,2822.0,0.00399782]
[1645967003556,6.5,2822.1,2821.7,0.1435276]
[1645967003758,1.19578311,2822.0,2821.7,0.1416]
[1645967003963,2.66088,2821.9,2821.7,0.1416]
[1645967004169,2.66088,2821.9,2820.2,3.1361]
[1645967004170,7.5,2821.6,2820.2,3.1361]
[1645967004362,4.9961679,2821.4,2820.1,0.0360641]
[1645967004566,3.5,2821.3,2820.1,0.0360641]
[1645967004761,10.9118,2821.2,2820.1,0.0360641]
[1645967004961,0.88733,2820.9,2820.1,0.0360641]
[1645967005158,0.88732,2820.7,2820.1,0.0360641]
[1645967006208,1.90016918,2820.7,2820.1,0.0360641]
[1645967006406,1.90016918,2820.7,2820.1,0.3886641]
[1645967006407,0.88724,2820.6,2820.1,0.3886641]
[1645967006606,0.88724,2820.6,2820.1,3.8886641]
[1645967006807,0.88732,2820.7,2820.1,0.0360641]
[1645967007212,2.66184,2821.0,2820.1,0.0360641]
[1645967007413,2.66184,2821.0,2820.5,1.37489244]
[1645967007812,2.66184,2821.0,2820.3,0.00192423]
[1645967008216,2.66184,2821.0,2820.6,0.0062706]
[1645967008616,0.02732515,2820.7,2820.6,0.0062706]
[1645967009460,0.02732515,2820.7,2820.2,3.85452423]
[1645967009656,0.02732515,2820.7,2820.5,0.00627074]
[1645967010258,0.02732515,2820.7,2820.5,1.30712632]
[1645967010461,0.02732515,2820.7,2820.6,3.5]
[1645967011163,0.02732515,2820.7,2820.5,1.30680242]
[1645967011561,0.02732515,2820.7,2820.5,1.30085558]
[1645967011960,0.02732515,2820.7,2820.5,1.30680242]
[1645967012561,0.02732515,2820.7,2820.5,0.00594684]
[1645967012762,0.02732515,2820.7,2820.3,2.867]
[1645967013213,0.02732515,2820.7,2820.5,0.00576843]
[1645967013617,1.06208102,2820.6,2820.5,0.00576843]
[1645967013814,0.02732515,2820.7,2820.5,0.00576843]
[1645967014017,0.02732515,2820.7,2820.1,0.0360641]
[1645967016017,0.07732515,2820.7,2820.1,0.0360641]
[1645967016617,19.07732515,2820.7,2820.1,0.0360641]
[1645967016851,19.07732515,2820.7,2820.3,0.0062676]
[1645967017656,19.07732515,2820.7,2820.1,0.0360641]
[1645967018258,19.96453515,2820.7,2820.1,0.0360641]
[1645967019059,3.5,2820.6,2820.3,0.0062676]
[1645967019260,1.02905,2820.5,2820.3,0.0062676]
[1645967019459,3.5,2820.4,2820.3,0.0062676]
[1645967019659,0.1418,2820.4,2820.3,0.0062676]